fUSD/lending_fUSD_20260224
["ID","MTS","AMOUNT","RATE_DAILY","PERIOD"]
[406564476,1771946688730,515.64514223,9.096e-05,2]
[406564477,1771946701475,300.0,9.096e-05,2]
[406564478,1771946701535,300.0,9.096e-05,2]
[406564479,1771946701588,1200.0,9.096e-05,2]
[406564481,1771946726995,500.0,9.096e-05,2]
[406564482,1771946727051,500.0,9.096e-05,2]
[406564483,1771946727112,214.09,9.096e-05,2]
[406564488,1771946760782,1830.18412858,8e-05,2]
[406564489,1771946760809,4387.11433285,8e-05,2]
[406564490,1771946761270,5612.89566715,9.087e-05,2]
[406564491,1771946761296,10000.01,9.087e-05,2]
[406564492,1771946761320,10000.01,9.087e-05,2]
[406564493,1771946761344,5050.95433285,9.087e-05,2]
[406564494,1771946762234,300.0,9.096e-05,2]
[406564495,1771946770111,404.58167378,9.096e-05,2]
[406564496,1771946771062,500.0,9.096e-05,2]
[406564497,1771946771106,500.0,9.096e-05,2]
[406564498,1771946771157,460.1,9.096e-05,2]
[406564499,1771946775950,422.247519,8.833e-05,2]
[406564500,1771946789250,2362.12647437,8.997e-05,2]
[406564501,1771946789279,10000.01,8.997e-05,2]
[406564502,1771946789307,10000.01,8.997e-05,2]
[406564503,1771946789333,10000.01,8.997e-05,2]
[406564504,1771946789360,10000.01,8.997e-05,2]
[406564505,1771946789388,10000.01,8.997e-05,2]
[406564506,1771946789416,24205.555994,8.997e-05,2]
[406564507,1771946793227,-644.1587712,8.996e-05,2]
[406564508,1771946793257,-1999355.8412288,8.997e-05,2]
[406564509,1771946832039,2044.820116,8.95e-05,2]
[406564510,1771946843642,5000.01,8.913e-05,2]
[406564511,1771946843665,5000.01,8.913e-05,2]
[406564512,1771946843694,4437.69,8.913e-05,2]
[406564513,1771946846878,3517.499884,8.95e-05,2]
[406564514,1771946846902,1092.499628,8.95e-05,2]
[406564516,1771946857151,2238.49271131,8.897e-05,2]
[406564517,1771946857322,300.0,8.8e-05,3]
[406564518,1771946859416,600.0,8.9e-05,3]
[406564519,1771946861537,900.0,9e-05,3]
[406564520,1771946888431,5353.508286,7.945e-05,2]
[406564522,1771946932558,205.06,0.000131,7]
[406564523,1771946933673,205.06,0.00011,3]
[406564524,1771946971266,-1200.0,8.995e-05,2]
[406564525,1771946971296,-300.0,8.995e-05,2]
[406564526,1771946976433,5506.28,5.121e-05,2]
[406564527,1771946976677,1493.73,5.3e-05,2]
[406564528,1771946976700,4012.55,5.3e-05,2]
[406564529,1771946977272,5506.28,5.48e-05,2]
[406564530,1771946977515,481.18,5.66e-05,2]
[406564531,1771946977538,5025.1,5.66e-05,2]
[406564532,1771946977768,4974.91,5.839e-05,2]
[406564533,1771946977793,531.37,5.839e-05,2]
[406564534,1771946978070,5506.28,6.019e-05,2]
[406564535,1771946978269,3962.36,6.199e-05,2]
[406564536,1771946978296,1543.92,6.199e-05,2]
[406564537,1771946978490,5506.28,6.378e-05,2]
[406564538,1771946978783,2949.81,6.558e-05,2]
[406564539,1771946978818,2556.47,6.558e-05,2]
[406564540,1771946979107,5506.28,6.738e-05,2]
[406564541,1771946979302,1937.26,6.917e-05,2]
[406564542,1771946979326,1148.71610709,6.917e-05,2]
[406564543,1771946979348,1148.71610709,6.917e-05,2]
[406564544,1771946979372,1148.71610709,6.917e-05,2]
[406564545,1771946979396,122.87167873,6.917e-05,2]
[406564546,1771946979565,1025.84442836,7.097e-05,2]
[406564547,1771946979587,1148.71610709,7.097e-05,2]
[406564548,1771946979612,1148.71610709,7.097e-05,2]
[406564549,1771946979638,1148.71610709,7.097e-05,2]
[406564550,1771946979661,1034.28725037,7.097e-05,2]
[406564551,1771946979789,114.42885672,7.277e-05,2]
[406564552,1771946979813,1148.71610709,7.277e-05,2]
[406564553,1771946979836,1148.71610709,7.277e-05,2]
[406564554,1771946979863,3094.4189291,7.277e-05,2]
[406564555,1771946980004,5506.28,7.456e-05,2]
[406564556,1771946980227,5506.28,7.636e-05,2]
[406564557,1771946980445,4493.73,7.816e-05,2]
[406564558,1771946980471,1012.55,7.816e-05,2]
[406564559,1771946980661,5506.28,7.995e-05,2]
[406564560,1771946980904,5506.28,8.175e-05,2]
[406564561,1771946981133,5506.28,8.355e-05,2]
[406564562,1771947002983,5138.09436464,6.917e-05,2]
[406564563,1771947003663,1279.02931103,6.917e-05,2]
[406564564,1771947003699,2754.33559866,6.917e-05,2]
[406564565,1771947003754,546.65560534,6.917e-05,2]
[406564569,1771947010574,5115.58868225,6.917e-05,2]
[406564570,1771947010607,985.95112805,6.917e-05,2]
[406564600,1771947032366,-221.0,8.534e-05,2]
[406564601,1771947032376,-5506.28,8.534e-05,2]
[406564602,1771947032385,-203.726052,8.693e-05,2]
[406564603,1771947032395,-19912.52,8.959e-05,2]
[406564604,1771947032405,-300.0,8.995e-05,2]
[406564605,1771947032415,-1200.0,8.995e-05,2]
[406564606,1771947032428,-150.0,8.995e-05,2]
[406564607,1771947032438,-250.0,8.995e-05,2]
[406564608,1771947032447,-500.0,8.996e-05,2]
[406564609,1771947032457,-250.0,8.996e-05,2]
[406564610,1771947032467,-500.0,8.996e-05,2]
[406564611,1771947032476,-500.0,8.996e-05,2]
[406564612,1771947032486,-500.0,8.996e-05,2]
[406564614,1771947032495,-500.0,8.996e-05,2]
[406564616,1771947032504,-500.0,8.996e-05,2]
[406564618,1771947032513,-500.0,8.996e-05,2]
[406564620,1771947032523,-500.0,8.996e-05,2]
[406564622,1771947032532,-500.0,8.996e-05,2]
[406564624,1771947032542,-500.0,8.996e-05,2]
[406564626,1771947032552,-500.0,8.996e-05,2]
[406564628,1771947032561,-500.0,8.996e-05,2]
[406564630,1771947032571,-500.0,8.996e-05,2]
[406564632,1771947032580,-500.0,8.996e-05,2]
[406564634,1771947032590,-500.0,8.996e-05,2]
[406564636,1771947032599,-500.0,8.996e-05,2]
[406564638,1771947032609,-500.0,8.996e-05,2]
[406564640,1771947032618,-500.0,8.996e-05,2]
[406564642,1771947032629,-500.0,8.996e-05,2]
[406564644,1771947032639,-500.0,8.996e-05,2]
[406564646,1771947032650,-500.0,8.996e-05,2]
[406564648,1771947032660,-500.0,8.996e-05,2]
[406564650,1771947032670,-500.0,8.996e-05,2]
[406564652,1771947032679,-500.0,8.996e-05,2]
[406564654,1771947032688,-500.0,8.996e-05,2]
[406564656,1771947032697,-500.0,8.996e-05,2]
[406564658,1771947032707,-500.0,8.996e-05,2]
[406564660,1771947032716,-384.82560974,8.996e-05,2]
[406564663,1771947032729,-115.17439026,8.996e-05,2]
[406564665,1771947032739,-410.62236015,8.996e-05,2]
[406564715,1771947038207,-89.37763985,8.996e-05,2]
[406564716,1771947038218,-500.0,8.996e-05,2]
[406564717,1771947038228,-500.0,8.996e-05,2]
[406564718,1771947038237,-500.0,8.996e-05,2]
[406564719,1771947038246,-500.0,8.996e-05,2]
[406564720,1771947038256,-500.0,8.996e-05,2]
[406564721,1771947038265,-568.65564363,8.996e-05,2]
[406564722,1771947038275,-568.65564363,8.996e-05,2]
[406564723,1771947038285,-568.65564363,8.996e-05,2]
[406564724,1771947038295,-568.65564363,8.996e-05,2]
[406564725,1771947038305,-568.65564363,8.996e-05,2]
[406564726,1771947038315,-568.65564363,8.996e-05,2]
[406564727,1771947038324,-568.65564363,8.996e-05,2]
[406564728,1771947038334,-568.65564363,8.996e-05,2]
[406564729,1771947038344,-568.65564363,8.996e-05,2]
[406564730,1771947038354,-568.65564363,8.996e-05,2]
[406564731,1771947038364,-568.65564363,8.996e-05,2]
[406564732,1771947038374,-568.65564363,8.996e-05,2]
[406564733,1771947038383,-568.65564363,8.996e-05,2]
[406564734,1771947038393,-568.65564363,8.996e-05,2]
[406564735,1771947038402,-568.65564363,8.996e-05,2]
[406564736,1771947038411,-568.65564363,8.996e-05,2]
[406564737,1771947038421,-568.65564363,8.996e-05,2]
[406564738,1771947038431,-568.65564363,8.996e-05,2]
[406564739,1771947038441,-568.65564363,8.996e-05,2]
[406564740,1771947038450,-568.65564363,8.996e-05,2]
[406564741,1771947038460,-568.65564363,8.996e-05,2]
[406564742,1771947038470,-568.65564363,8.996e-05,2]
[406564743,1771947038479,-568.65564363,8.996e-05,2]
[406564744,1771947038489,-568.65564363,8.996e-05,2]
[406564745,1771947038500,-568.65564363,8.996e-05,2]
[406564746,1771947038509,-568.65564363,8.996e-05,2]
[406564747,1771947038519,-568.65564363,8.996e-05,2]
[406564748,1771947038528,-568.65564363,8.996e-05,2]
[406564750,1771947038538,-568.65564363,8.996e-05,2]
[406564751,1771947038547,-568.65564363,8.996e-05,2]
[406564752,1771947038557,-568.65564363,8.996e-05,2]
[406564753,1771947038565,-568.65564363,8.996e-05,2]
[406564754,1771947038574,-568.65564363,8.996e-05,2]
[406564755,1771947038583,-155.51205624,8.996e-05,2]
[406564756,1771947038593,-1424076.42630283,8.997e-05,2]
[406564757,1771947038601,-4132.3953,8.997e-05,2]
[406564758,1771947038611,-32910.8711,8.997e-05,2]
[406564759,1771947038620,-2500.0,8.997e-05,2]
[406564760,1771947038630,-6742.7938,8.997e-05,2]
[406564761,1771947038639,-275.72191242,8.997e-05,2]
[406564763,1771947038648,-273.42,9e-05,2]
[406564764,1771947038658,-367.06,9.1e-05,2]
[406564765,1771947038666,-1224.79,9.146e-05,2]
[406564766,1771947038677,-1302.0,9.151e-05,2]
[406564768,1771947038687,-2606.0,9.151e-05,2]
[406564770,1771947038696,-1123.78,9.169e-05,2]
[406564772,1771947038705,-4999.99,9.169e-05,2]
[406564774,1771947038715,-499.99,9.169e-05,2]
[406564775,1771947038724,-9999.99,9.169e-05,2]
[406564777,1771947038734,-9999.99,9.169e-05,2]
[406564779,1771947038744,-306.28,9.169e-05,2]
[406564781,1771947038753,-299.99,9.169e-05,2]
[406564783,1771947038763,-150.99,9.169e-05,2]
[406564785,1771947038772,-150.99,9.169e-05,2]
[406564787,1771947038785,-9999.99,9.169e-05,2]
[406564789,1771947038795,-999.99,9.169e-05,2]
[406564791,1771947038805,-3838.62,9.169e-05,2]
[406564793,1771947038817,-9999.99,9.169e-05,2]
[406564794,1771947038826,-9999.99,9.169e-05,2]
[406564795,1771947038837,-966.5785543,9.197e-05,2]
[406564796,1771947038847,-556.0,9.226e-05,2]
[406564797,1771947038857,-500.0,9.27e-05,2]
[406564798,1771947038867,-500.0,9.298e-05,2]
[406564799,1771947038877,-32727.1002,9.298e-05,2]
[406564800,1771947038887,-183.0566,9.298e-05,2]
[406564801,1771947038896,-1500.0,9.342e-05,2]
[406564802,1771947038907,-1713.0,9.417e-05,2]
[406564803,1771947038920,-267.0,9.417e-05,2]
[406564804,1771947038930,-822.0,9.436e-05,2]
[406564805,1771947038940,-278.0,9.436e-05,2]
[406564806,1771947038950,-1123.78,9.443e-05,2]
[406564807,1771947038960,-1315.0,9.454e-05,2]
[406564808,1771947038970,-416.0,9.517e-05,2]
[406564809,1771947038980,-277.0,9.536e-05,2]
[406564810,1771947038990,-500.0,9.544e-05,2]
[406564811,1771947039000,-643.65320379,9.582e-05,2]
[406564812,1771947039009,-507.0,9.583e-05,2]
[406564813,1771947039020,-645.0,9.602e-05,2]
[406564814,1771947039030,-363.0,9.621e-05,2]
[406564815,1771947039039,-307.246173,9.716e-05,2]
[406564816,1771947039048,-1123.78,9.717e-05,2]
[406564817,1771947039058,-500.0,9.818e-05,2]
[406564818,1771947039067,-24049.16,9.867e-05,2]
[406564819,1771947039077,-420.0,9.894e-05,2]
[406564820,1771947039088,-1680.0,9.894e-05,2]
[406564821,1771947039098,-255.0,9.894e-05,2]
[406564822,1771947039108,-250.0,9.895e-05,2]
[406564823,1771947039118,-19215.59139771,9.95e-05,2]
[406564824,1771947039133,-1812.05985797,9.95e-05,2]
[406564825,1771947039145,-400.0,9.95e-05,2]
[406564833,1771947040411,-2356.90000026,9.95e-05,2]
[406564834,1771947040611,-390.31957486,9.95e-05,2]
[406564835,1771947040635,-1929.04396755,9.95e-05,2]
[406564836,1771947040644,-1123.78,9.991e-05,2]
[406564837,1771947040653,-768.11544236,0.0001,2]
[406564838,1771947040662,-151.0,0.0001,2]
[406564839,1771947040672,-151.0,0.0001,2]
[406564840,1771947040682,-151.0,0.0001,2]
[406564841,1771947040691,-151.0,0.0001,2]
[406564842,1771947040701,-151.0,0.0001,2]
[406564843,1771947040710,-151.0,0.0001,2]
[406564844,1771947040719,-500.0,0.0001,2]
[406564845,1771947040728,-151.0,0.0001,2]
[406564846,1771947040739,-222.30735036,0.0001,2]
[406564847,1771947040748,-151.0,0.0001,2]
[406564848,1771947040757,-151.0,0.0001,2]
[406564849,1771947040766,-500.0,0.0001,2]
[406564850,1771947040776,-151.0,0.0001,2]
[406564851,1771947040785,-500.0,0.0001,2]
[406564852,1771947040794,-151.0,0.0001,2]
[406564853,1771947040803,-500.0,0.0001,2]
[406564854,1771947040814,-151.0,0.0001,2]
[406564855,1771947040823,-500.0,0.0001,2]
[406564856,1771947040832,-151.0,0.0001,2]
[406564857,1771947040841,-500.0,0.0001,2]
[406564858,1771947040850,-151.0,0.0001,2]
[406564859,1771947040859,-500.0,0.0001,2]
[406564860,1771947040868,-151.0,0.0001,2]
[406564861,1771947040877,-500.0,0.0001,2]
[406564862,1771947040887,-151.0,0.0001,2]
[406564864,1771947040896,-500.0,0.0001,2]
[406564866,1771947040905,-151.0,0.0001,2]
[406564867,1771947040914,-500.0,0.0001,2]
[406564869,1771947040923,-151.0,0.0001,2]
[406564871,1771947040932,-500.0,0.0001,2]
[406564873,1771947040942,-151.0,0.0001,2]
[406564875,1771947040951,-500.0,0.0001,2]
[406564877,1771947040960,-151.0,0.0001,2]
[406564880,1771947040973,-151.0,0.0001,2]
[406564881,1771947040982,-151.0,0.0001,2]
[406564884,1771947040991,-151.0,0.0001,2]
[406564885,1771947041000,-151.0,0.0001,2]
[406564888,1771947041010,-151.0,0.0001,2]
[406564889,1771947041019,-151.0,0.0001,2]
[406564891,1771947041030,-151.0,0.0001,2]
[406564907,1771947041202,-151.0,0.0001,2]
[406564908,1771947041269,-151.0,0.0001,2]
[406564909,1771947041278,-151.0,0.0001,2]
[406564910,1771947041287,-151.0,0.0001,2]
[406564911,1771947041297,-151.0,0.0001,2]
[406564912,1771947041306,-151.0,0.0001,2]
[406564913,1771947041315,-151.0,0.0001,2]
[406564914,1771947041324,-151.0,0.0001,2]
[406564915,1771947041333,-151.0,0.0001,2]
[406564916,1771947041342,-151.0,0.0001,2]
[406564917,1771947041351,-151.0,0.0001,2]
[406564918,1771947041361,-151.0,0.0001,2]
[406564919,1771947041370,-151.0,0.0001,2]
[406564920,1771947041379,-151.0,0.0001,2]
[406564921,1771947041389,-151.0,0.0001,2]
[406564922,1771947041397,-151.0,0.0001,2]
[406564923,1771947041406,-151.0,0.0001,2]
[406564924,1771947041415,-151.0,0.0001,2]
[406564925,1771947041423,-153.0,0.0001,2]
[406564926,1771947041432,-151.0,0.0001,2]
[406564927,1771947041441,-153.0,0.0001,2]
[406564928,1771947041450,-151.0,0.0001,2]
[406564929,1771947041459,-153.60272737,0.0001,2]
[406564930,1771947041468,-151.0,0.0001,2]
[406564931,1771947041476,-151.0,0.0001,2]
[406564932,1771947041485,-151.0,0.0001,2]
[406564933,1771947041493,-151.0,0.0001,2]
[406564934,1771947041503,-408.32664987,0.0001,2]
[406564935,1771947041511,-500.0,0.00010092,2]
[406564936,1771947041520,-1227.65,0.00010092,2]
[406564937,1771947041529,-4234.36,0.00010157,2]
[406564938,1771947041538,-155.0,0.00010227,2]
[406564939,1771947041547,-1123.78,0.00010265,2]
[406564940,1771947041555,-500.0,0.00010366,2]
[406564941,1771947041564,-12275.37,0.00010421,2]
[406564942,1771947041573,-1123.78,0.00010539,2]
[406564943,1771947041582,-500.0,0.00010573,2]
[406564944,1771947041591,-500.0,0.00010573,2]
[406564945,1771947041600,-500.0,0.00010573,2]
[406564946,1771947041609,-500.0,0.00010573,2]
[406564947,1771947041618,-500.0,0.00010573,2]
[406564948,1771947041627,-500.0,0.00010573,2]
[406564949,1771947041636,-500.0,0.00010573,2]
[406564950,1771947041644,-500.0,0.00010573,2]
[406564951,1771947041653,-500.0,0.00010573,2]
[406564952,1771947041662,-500.0,0.00010573,2]
[406564953,1771947041672,-500.0,0.00010573,2]
[406564954,1771947041681,-156.77334247,0.00010573,2]
[406564955,1771947041690,-500.0,0.00010573,2]
[406564956,1771947041699,-500.0,0.00010573,2]
[406564957,1771947041708,-353.498286,0.000106,2]
[406564958,1771947041717,-500.0,0.0001064,2]
[406564959,1771947041726,-14316.0,0.00010767,2]
[406564960,1771947041734,-294.33412125,0.00010799,2]
[406564961,1771947041743,-500.0,0.000108,2]
[406564962,1771947041754,-699.99,0.000108,2]
[406564963,1771947041763,-700.0,0.000108,2]
[406564964,1771947041772,-800.0,0.000108,2]
[406564965,1771947041780,-700.0,0.000108,2]
[406564966,1771947041789,-800.0,0.000108,2]
[406564967,1771947041798,-700.0,0.000108,2]
[406564968,1771947041807,-800.0,0.000108,2]
[406564969,1771947041817,-700.0,0.000108,2]
[406564970,1771947041826,-800.0,0.000108,2]
[406564971,1771947041835,-700.0,0.000108,2]
[406564972,1771947041843,-610.81241278,0.000108,2]
[406564973,1771947041852,-800.0,0.000108,2]
[406564974,1771947041862,-700.0,0.000108,2]
[406564975,1771947041871,-800.0,0.000108,2]
[406564976,1771947041880,-700.0,0.000108,2]
[406564977,1771947041890,-800.0,0.000108,2]
[406564978,1771947041899,-700.0,0.000108,2]
[406564979,1771947041908,-800.0,0.000108,2]
[406564980,1771947041918,-500.0,0.000108,2]
[406564981,1771947041929,-700.0,0.000108,2]
[406564982,1771947041938,-800.0,0.000108,2]
[406564983,1771947041947,-700.0,0.000108,2]
[406564984,1771947041957,-500.0,0.000108,2]
[406564985,1771947041967,-700.0,0.000108,2]
[406564986,1771947041976,-889.732786,0.000108,2]
[406564987,1771947041985,-1600.0,0.000108,2]
[406564988,1771947041994,-500.0,0.000108,2]
[406564989,1771947042004,-1600.0,0.000108,2]
[406564990,1771947042013,-500.0,0.000108,2]
[406564991,1771947042022,-800.0,0.000108,2]
[406564992,1771947042031,-500.0,0.000108,2]
[406564993,1771947042040,-500.0,0.000108,2]
[406564994,1771947042049,-500.0,0.000108,2]
[406564995,1771947042059,-500.0,0.000108,2]
[406564996,1771947042068,-500.0,0.000108,2]
[406564997,1771947042077,-1600.0,0.000108,2]
[406564998,1771947042088,-500.0,0.000108,2]
[406564999,1771947042097,-500.0,0.000108,2]
[406565000,1771947042106,-500.0,0.000108,2]
[406565001,1771947042115,-500.0,0.000108,2]
[406565002,1771947042128,-800.0,0.000108,2]
[406565003,1771947042138,-500.0,0.000108,2]
[406565004,1771947042147,-500.0,0.000108,2]
[406565005,1771947042155,-500.0,0.000108,2]
[406565006,1771947042165,-800.0,0.000108,2]
[406565007,1771947042175,-500.0,0.000108,2]
[406565008,1771947042185,-500.0,0.000108,2]
[406565009,1771947042195,-800.0,0.000108,2]
[406565010,1771947042204,-500.0,0.000108,2]
[406565011,1771947042213,-1600.0,0.000108,2]
[406565012,1771947042222,-801.1773829,0.000108,2]
[406565013,1771947042231,-1068.51170222,0.000108,2]
[406565014,1771947042240,-1600.0,0.000108,2]
[406565015,1771947042249,-1600.0,0.000108,2]
[406565016,1771947042258,-1600.0,0.000108,2]
[406565017,1771947042267,-700.0,0.000108,2]
[406565018,1771947042277,-500.0,0.000108,2]
[406565019,1771947042287,-1600.0,0.000108,2]
[406565020,1771947042296,-500.0,0.000108,2]
[406565021,1771947042305,-1600.0,0.000108,2]
[406565022,1771947042314,-500.0,0.000108,2]
[406565023,1771947042324,-500.0,0.000108,2]
[406565024,1771947042334,-500.0,0.000108,2]
[406565025,1771947042343,-1600.0,0.000108,2]
[406565026,1771947042352,-500.0,0.000108,2]
[406565027,1771947042361,-500.0,0.000108,2]
[406565028,1771947042371,-500.0,0.000108,2]
[406565029,1771947042380,-1600.0,0.000108,2]
[406565030,1771947042389,-500.0,0.000108,2]
[406565031,1771947042398,-500.0,0.000108,2]
[406565032,1771947042407,-500.0,0.000108,2]
[406565033,1771947042416,-1600.0,0.000108,2]
[406565034,1771947042425,-500.0,0.000108,2]
[406565035,1771947042434,-500.0,0.000108,2]
[406565036,1771947042443,-500.0,0.000108,2]
[406565037,1771947042451,-1600.0,0.000108,2]
[406565038,1771947042461,-500.0,0.000108,2]
[406565039,1771947042471,-500.0,0.000108,2]
[406565040,1771947042480,-704.38882443,0.000108,2]
[406565041,1771947042489,-3070.92667252,0.000108,2]
[406565042,1771947042498,-500.0,0.000108,2]
[406565043,1771947042507,-500.0,0.000108,2]
[406565044,1771947042516,-500.0,0.000108,2]
[406565045,1771947042526,-500.0,0.000108,2]
[406565046,1771947042535,-500.0,0.000108,2]
[406565047,1771947042544,-1137.34688951,0.000108,2]
[406565048,1771947042554,-500.0,0.000108,2]
[406565049,1771947042563,-500.0,0.000108,2]
[406565050,1771947042572,-501.33994508,0.000108,2]
[406565051,1771947042581,-500.0,0.000108,2]
[406565052,1771947042591,-500.0,0.000108,2]
[406565053,1771947042600,-500.0,0.000108,2]
[406565054,1771947042611,-918.40902476,0.000108,2]
[406565055,1771947042620,-500.0,0.000108,2]
[406565056,1771947042629,-500.0,0.000108,2]
[406565057,1771947042639,-500.0,0.000108,2]
[406565058,1771947042647,-500.0,0.000108,2]
[406565059,1771947042656,-500.0,0.000108,2]
[406565060,1771947042665,-823.91748752,0.000108,2]
[406565061,1771947042675,-500.0,0.000108,2]
[406565062,1771947042684,-500.0,0.000108,2]
[406565063,1771947042694,-713.93433051,0.000108,2]
[406565064,1771947042703,-510.420484,0.000108,2]
[406565065,1771947042711,-500.0,0.000108,2]
[406565066,1771947042721,-500.0,0.000108,2]
[406565067,1771947042730,-500.0,0.000108,2]
[406565068,1771947042739,-500.0,0.000108,2]
[406565069,1771947042748,-500.0,0.000108,2]
[406565070,1771947042756,-500.0,0.000108,2]
[406565071,1771947042766,-500.0,0.000108,2]
[406565072,1771947042775,-500.0,0.000108,2]
[406565073,1771947042784,-700.0,0.000108,2]
[406565074,1771947042793,-1000.0,0.000108,2]
[406565075,1771947042803,-700.0,0.000108,2]
[406565076,1771947042813,-1000.0,0.000108,2]
[406565077,1771947042822,-700.0,0.000108,2]
[406565078,1771947042831,-700.0,0.000108,2]
[406565079,1771947042840,-1000.0,0.000108,2]
[406565080,1771947042850,-700.0,0.000108,2]
[406565081,1771947042859,-1000.0,0.000108,2]
[406565082,1771947042869,-700.0,0.000108,2]
[406565083,1771947042878,-1000.0,0.000108,2]
[406565084,1771947042886,-700.0,0.000108,2]
[406565085,1771947042895,-1000.0,0.000108,2]
[406565086,1771947042903,-700.0,0.000108,2]
[406565087,1771947042910,-968.65142675,0.000108,2]
[406565088,1771947042918,-1000.0,0.000108,2]
[406565089,1771947042927,-500.0,0.000108,2]
[406565090,1771947042935,-700.0,0.000108,2]
[406565091,1771947042943,-1000.0,0.000108,2]
[406565092,1771947042951,-500.0,0.000108,2]
[406565093,1771947042958,-700.0,0.000108,2]
[406565094,1771947042966,-1000.0,0.000108,2]
[406565095,1771947042974,-700.0,0.000108,2]
[406565096,1771947042983,-1000.0,0.000108,2]
[406565097,1771947042992,-1000.0,0.000108,2]
[406565098,1771947043001,-700.0,0.000108,2]
[406565100,1771947043010,-1000.0,0.000108,2]
[406565102,1771947043019,-1000.0,0.000108,2]
[406565104,1771947043029,-2400.0,0.000108,2]
[406565105,1771947043039,-500.0,0.000108,2]
[406565106,1771947043048,-1000.0,0.000108,2]
[406565107,1771947043059,-1200.0,0.000108,2]
[406565108,1771947043068,-1000.0,0.000108,2]
[406565109,1771947043078,-2400.0,0.000108,2]
[406565110,1771947043090,-1000.0,0.000108,2]
[406565111,1771947043099,-1000.0,0.000108,2]
[406565112,1771947043108,-2400.0,0.000108,2]
[406565113,1771947043118,-1000.0,0.000108,2]
[406565114,1771947043130,-1200.0,0.000108,2]
[406565115,1771947043140,-2400.0,0.000108,2]
[406565116,1771947043149,-1000.0,0.000108,2]
[406565117,1771947043158,-972.031301,0.000108,2]
[406565118,1771947043167,-500.0,0.000108,2]
[406565119,1771947043180,-500.0,0.000108,2]
[406565120,1771947043191,-2400.0,0.000108,2]
[406565122,1771947043201,-1000.0,0.000108,2]
[406565124,1771947043211,-500.0,0.000108,2]
[406565126,1771947043220,-500.0,0.000108,2]
[406565128,1771947043230,-2400.0,0.000108,2]
[406565130,1771947043240,-1000.0,0.000108,2]
[406565131,1771947043248,-898.53555328,0.000108,2]
[406565132,1771947043257,-500.0,0.000108,2]
[406565133,1771947043266,-1000.0,0.000108,2]
[406565134,1771947043275,-980.719516,0.000108,2]
[406565135,1771947043284,-2400.0,0.000108,2]
[406565137,1771947043292,-1000.0,0.000108,2]
[406565138,1771947043302,-2400.0,0.000108,2]
[406565140,1771947043311,-1000.0,0.000108,2]
[406565142,1771947043320,-500.0,0.000108,2]
[406565145,1771947043330,-2400.0,0.000108,2]
[406565146,1771947043339,-1000.0,0.000108,2]
[406565148,1771947043349,-500.0,0.000108,2]
[406565150,1771947043359,-2400.0,0.000108,2]
[406565152,1771947043370,-1000.0,0.000108,2]
[406565154,1771947043382,-500.0,0.000108,2]
[406565156,1771947043392,-1516.0786905,0.000108,2]
[406565158,1771947043403,-500.0,0.000108,2]
[406565161,1771947043413,-500.0,0.000108,2]
[406565163,1771947043422,-2400.0,0.000108,2]